[Event "Titled Tuesday Blitz January 17 Late 2023"]
[White "Dardha, Daniel"]
[Black "Domingo Nunez, Ruben"]
[WhiteFideId "240990"]
[BlackFideId "22245570"]
[WhiteElo "2631"]
[BlackElo "2416"]
[Result "0-1"]
[Round "05"]
[TimeControl "180+2"]
[Date "2023.01.17"]
[WhiteClock "0:00:02"]
[BlackClock "0:00:09"]

1. c4 {[%clk 0:03:00]}  g6 {[%clk 0:02:59]} 2. g3 {[%clk 0:02:58]}  Bg7 {[%clk 0:03:00]} 3. Bg2 {[%clk 0:02:59]}  d6 {[%clk 0:03:00]} 4. Nc3 {[%clk 0:02:59]}  Nf6 {[%clk 0:03:01]} 5. Nf3 {[%clk 0:02:58]}  O-O {[%clk 0:03:02]} 6. O-O {[%clk 0:02:58]}  Nbd7 {[%clk 0:03:03]} 7. b4 {[%clk 0:02:58]}  c5 {[%clk 0:03:03]} 8. Rb1 {[%clk 0:02:57]}  Rb8 {[%clk 0:03:01]} 9. d3 {[%clk 0:02:54]}  b6 {[%clk 0:03:01]} 10. a4 {[%clk 0:02:52]}  Bb7 {[%clk 0:03:01]} 11. Bd2 {[%clk 0:02:53]}  d5 {[%clk 0:02:46]} 12. cxd5 {[%clk 0:02:33]}  Nxd5 {[%clk 0:02:46]} 13. Nxd5 {[%clk 0:02:32]}  Bxd5 {[%clk 0:02:47]} 14. h4 {[%clk 0:02:20]}  h5 {[%clk 0:02:42]} 15. bxc5 {[%clk 0:02:12]}  Nxc5 {[%clk 0:02:43]} 16. Be3 {[%clk 0:02:05]}  Rc8 {[%clk 0:02:29]} 17. a5 {[%clk 0:01:41]}  bxa5 {[%clk 0:02:25]} 18. Rb5 {[%clk 0:01:42]}  Qd6 {[%clk 0:02:03]} 19. Rxa5 {[%clk 0:01:37]}  Qb6 {[%clk 0:01:59]} 20. Ra1 {[%clk 0:01:09]}  Bxa1 {[%clk 0:01:44]} 21. Qxa1 {[%clk 0:01:10]}  Rfe8 {[%clk 0:01:44]} 22. Rb1 {[%clk 0:01:06]}  Qc7 {[%clk 0:01:33]} 23. Rc1 {[%clk 0:00:55]}  Nb3 {[%clk 0:01:30]} 24. Rxc7 {[%clk 0:00:56]}  Nxa1 {[%clk 0:01:31]} 25. Rxa7 {[%clk 0:00:57]}  Nc2 {[%clk 0:01:31]} 26. Bg5 {[%clk 0:00:36]}  e5 {[%clk 0:01:08]} 27. e4 {[%clk 0:00:29]}  Ra8 {[%clk 0:00:55]} 28. Rc7 {[%clk 0:00:19]}  Ra1+ {[%clk 0:00:55]} 29. Kh2 {[%clk 0:00:19]}  Bb3 {[%clk 0:00:56]} 30. Bf6 {[%clk 0:00:16]}  Nb4 {[%clk 0:00:38]} 31. Nxe5 {[%clk 0:00:15]}  Ra6 {[%clk 0:00:35]} 32. Nd7 {[%clk 0:00:13]}  Nxd3 {[%clk 0:00:26]} 33. Bd4 {[%clk 0:00:10]}  Rd8 {[%clk 0:00:23]} 34. e5 {[%clk 0:00:06]}  Be6 {[%clk 0:00:23]} 35. Nf6+ {[%clk 0:00:06]}  Kf8 {[%clk 0:00:24]} 36. Be3 {[%clk 0:00:07]}  Kg7 {[%clk 0:00:17]} 37. Bg5 {[%clk 0:00:06]}  Rc8 {[%clk 0:00:16]} 38. Re7 {[%clk 0:00:03]}  Nxe5 {[%clk 0:00:16]} 39. Bb7 {[%clk 0:00:03]}  Ra7 {[%clk 0:00:14]} 40. Bxc8 {[%clk 0:00:03]}  Rxe7 {[%clk 0:00:14]} 41. Ba6 {[%clk 0:00:01]}  Ra7 {[%clk 0:00:13]} 42. Be2 {[%clk 0:00:01]}  Ra2 {[%clk 0:00:12]} 43. Bb5 {[%clk 0:00:02]}  Rxf2+ {[%clk 0:00:11]} 44. Kg1 {[%clk 0:00:02]}  Rb2 {[%clk 0:00:11]} 45. Ne8+ {[%clk 0:00:02]}  Kf8 {[%clk 0:00:11]} 46. Bh6+ {[%clk 0:00:03]}  Ke7 {[%clk 0:00:11]} 47. Bg5+ {[%clk 0:00:03]}  Kf8 {[%clk 0:00:10]} 48. Bh6+ {[%clk 0:00:03]}  Kg8 {[%clk 0:00:10]} 49. Nf6+ {[%clk 0:00:03]}  Kh8 {[%clk 0:00:11]} 50. Be8 {[%clk 0:00:03]}  Nf3+ {[%clk 0:00:09]} 51. Kf1 {[%clk 0:00:02]}  Bh3# {[%clk 0:00:09]} 0-1


[Site "https://www.chess.com"]

[Event "Titled Tuesday Blitz January 17 Late 2023"]
[White "Ozer, Omer Faruk"]
[Black "Zierk, Steven"]
[WhiteFideId "6354564"]
[BlackFideId "2034255"]
[WhiteElo "2360"]
[BlackElo "2488"]
[Result "0-1"]
[Round "05"]
[TimeControl "180+2"]
[Date "2023.01.17"]
[WhiteClock "0:00:03"]
[BlackClock "0:01:21"]

1. e4 {[%clk 0:02:57]}  e6 {[%clk 0:02:59]} 2. d4 {[%clk 0:02:54]}  d5 {[%clk 0:03:00]} 3. e5 {[%clk 0:02:53]}  c5 {[%clk 0:03:00]} 4. c3 {[%clk 0:02:54]}  Nc6 {[%clk 0:03:00]} 5. Nf3 {[%clk 0:02:54]}  Bd7 {[%clk 0:03:00]} 6. Bd3 {[%clk 0:02:54]}  Qb6 {[%clk 0:03:00]} 7. O-O {[%clk 0:02:55]}  cxd4 {[%clk 0:03:00]} 8. Re1 {[%clk 0:02:55]}  Nge7 {[%clk 0:02:58]} 9. h4 {[%clk 0:02:54]}  dxc3 {[%clk 0:02:47]} 10. Nxc3 {[%clk 0:02:52]}  Na5 {[%clk 0:02:43]} 11. Be3 {[%clk 0:02:46]}  Qd8 {[%clk 0:02:42]} 12. b4 {[%clk 0:02:37]}  Rc8 {[%clk 0:02:36]} 13. Nb5 {[%clk 0:02:18]}  Bxb5 {[%clk 0:02:34]} 14. Bxb5+ {[%clk 0:02:19]}  Nac6 {[%clk 0:02:35]} 15. Bxa7 {[%clk 0:02:14]}  Nf5 {[%clk 0:02:34]} 16. Rc1 {[%clk 0:02:02]}  Bxb4 {[%clk 0:02:31]} 17. Bc5 {[%clk 0:01:24]}  Bxc5 {[%clk 0:02:28]} 18. Rxc5 {[%clk 0:01:25]}  Nxh4 {[%clk 0:02:20]} 19. Nd4 {[%clk 0:01:21]}  O-O {[%clk 0:02:16]} 20. Bxc6 {[%clk 0:01:17]}  bxc6 {[%clk 0:02:13]} 21. Qg4 {[%clk 0:01:16]}  Ng6 {[%clk 0:02:07]} 22. Nxc6 {[%clk 0:01:15]}  Qb6 {[%clk 0:02:02]} 23. Rec1 {[%clk 0:01:10]}  Qb2 {[%clk 0:01:55]} 24. R5c2 {[%clk 0:00:57]}  Qa3 {[%clk 0:01:42]} 25. g3 {[%clk 0:00:48]}  Rxc6 {[%clk 0:01:39]} 26. Rxc6 {[%clk 0:00:42]}  Nxe5 {[%clk 0:01:39]} 27. Qe2 {[%clk 0:00:30]}  Nxc6 {[%clk 0:01:38]} 28. Rxc6 {[%clk 0:00:31]}  Ra8 {[%clk 0:01:38]} 29. Rc7 {[%clk 0:00:21]}  g6 {[%clk 0:01:29]} 30. Rc2 {[%clk 0:00:05]}  Qb4 {[%clk 0:01:22]} 31. Qf3 {[%clk 0:00:03]}  Qb1+ {[%clk 0:01:21]} 0-1


[Site "https://www.chess.com"]

[Event "Titled Tuesday Blitz January 17 Late 2023"]
[White "Di Berardino, Diego Rafael"]
[Black "Tari, Aryan"]
[WhiteFideId "2105446"]
[BlackFideId "1510045"]
[WhiteElo "2479"]
[BlackElo "2642"]
[Result "0-1"]
[Round "05"]
[TimeControl "180+2"]
[Date "2023.01.17"]
[WhiteClock "0:00:01"]
[BlackClock "0:00:04"]

1. e4 {[%clk 0:03:00]}  c5 {[%clk 0:02:44]} 2. Nf3 {[%clk 0:02:59]}  d6 {[%clk 0:02:44]} 3. d4 {[%clk 0:02:58]}  cxd4 {[%clk 0:02:45]} 4. Nxd4 {[%clk 0:02:59]}  Nf6 {[%clk 0:02:46]} 5. Nc3 {[%clk 0:02:59]}  a6 {[%clk 0:02:46]} 6. Be2 {[%clk 0:02:55]}  e5 {[%clk 0:02:46]} 7. Nb3 {[%clk 0:02:50]}  Be7 {[%clk 0:02:46]} 8. Be3 {[%clk 0:02:48]}  O-O {[%clk 0:02:45]} 9. g4 {[%clk 0:02:47]}  b5 {[%clk 0:02:32]} 10. g5 {[%clk 0:02:46]}  Ne8 {[%clk 0:02:33]} 11. h4 {[%clk 0:02:42]}  Nc7 {[%clk 0:02:26]} 12. Qd2 {[%clk 0:02:23]}  Bb7 {[%clk 0:02:25]} 13. O-O-O {[%clk 0:02:18]}  b4 {[%clk 0:02:21]} 14. Nd5 {[%clk 0:02:17]}  Nxd5 {[%clk 0:02:16]} 15. exd5 {[%clk 0:02:18]}  a5 {[%clk 0:02:17]} 16. Kb1 {[%clk 0:02:18]}  a4 {[%clk 0:02:02]} 17. Nc1 {[%clk 0:02:17]}  Qa5 {[%clk 0:02:02]} 18. h5 {[%clk 0:02:13]}  Nd7 {[%clk 0:01:45]} 19. Rh4 {[%clk 0:01:57]}  Rfb8 {[%clk 0:00:40]} 20. Rxb4 {[%clk 0:01:51]}  Qd8 {[%clk 0:00:25]} 21. a3 {[%clk 0:01:47]}  Nc5 {[%clk 0:00:24]} 22. g6 {[%clk 0:01:33]}  fxg6 {[%clk 0:00:24]} 23. hxg6 {[%clk 0:01:34]}  hxg6 {[%clk 0:00:23]} 24. Bg4 {[%clk 0:01:31]}  Bc8 {[%clk 0:00:22]} 25. Bxc5 {[%clk 0:01:14]}  dxc5 {[%clk 0:00:22]} 26. Rxb8 {[%clk 0:01:10]}  Rxb8 {[%clk 0:00:22]} 27. Bxc8 {[%clk 0:01:09]}  Qxc8 {[%clk 0:00:21]} 28. d6 {[%clk 0:01:09]}  Qb7 {[%clk 0:00:20]} 29. Qd5+ {[%clk 0:00:31]}  Qxd5 {[%clk 0:00:21]} 30. Rxd5 {[%clk 0:00:32]}  Bf6 {[%clk 0:00:21]} 31. Rxc5 {[%clk 0:00:29]}  e4 {[%clk 0:00:22]} 32. c3 {[%clk 0:00:25]}  Kf7 {[%clk 0:00:22]} 33. Ne2 {[%clk 0:00:21]}  Ke6 {[%clk 0:00:21]} 34. Ng3 {[%clk 0:00:21]}  e3 {[%clk 0:00:16]} 35. fxe3 {[%clk 0:00:21]}  Kxd6 {[%clk 0:00:16]} 36. Ne4+ {[%clk 0:00:21]}  Ke6 {[%clk 0:00:16]} 37. Ra5 {[%clk 0:00:20]}  Be5 {[%clk 0:00:09]} 38. Rxa4 {[%clk 0:00:18]}  Kf5 {[%clk 0:00:09]} 39. Kc2 {[%clk 0:00:13]}  g5 {[%clk 0:00:09]} 40. Nf2 {[%clk 0:00:14]}  Rh8 {[%clk 0:00:08]} 41. Ng4 {[%clk 0:00:13]}  Rh4 {[%clk 0:00:08]} 42. Nxe5 {[%clk 0:00:04]}  Rxa4 {[%clk 0:00:08]} 43. Nd3 {[%clk 0:00:04]}  Rh4 {[%clk 0:00:05]} 44. b4 {[%clk 0:00:04]}  Rh2+ {[%clk 0:00:04]} 45. Kb3 {[%clk 0:00:04]}  g4 {[%clk 0:00:05]} 46. b5 {[%clk 0:00:03]}  g3 {[%clk 0:00:05]} 47. Nf4 {[%clk 0:00:02]}  g5 {[%clk 0:00:06]} 48. Nd3 {[%clk 0:00:01]}  g2 {[%clk 0:00:06]} 49. e4+ {[%clk 0:00:01]}  Kg4 {[%clk 0:00:03]} 50. Ne5+ {[%clk 0:00:01]}  Kg3 {[%clk 0:00:03]} 51. b6 {[%clk 0:00:01]}  g1=Q {[%clk 0:00:04]} 52. b7 {[%clk 0:00:01]}  Qb1+ {[%clk 0:00:04]} 0-1


[Site "https://www.chess.com"]

[Event "Titled Tuesday Blitz January 17 Late 2023"]
[White "Hamitevici, Vladimir"]
[Black "Pichot, Alan"]
[WhiteFideId "13902393"]
[BlackFideId "110973"]
[WhiteElo "2496"]
[BlackElo "2638"]
[Result "1-0"]
[Round "05"]
[TimeControl "180+2"]
[Date "2023.01.17"]
[WhiteClock "0:00:04"]
[BlackClock "0:00:01"]

1. a3 {[%clk 0:03:00]}  Nf6 {[%clk 0:02:57]} 2. Nf3 {[%clk 0:02:58]}  d5 {[%clk 0:02:57]} 3. e3 {[%clk 0:02:58]}  Bf5 {[%clk 0:02:56]} 4. c4 {[%clk 0:02:52]}  e6 {[%clk 0:02:56]} 5. b3 {[%clk 0:02:45]}  c6 {[%clk 0:02:54]} 6. Bb2 {[%clk 0:02:44]}  h6 {[%clk 0:02:54]} 7. Be2 {[%clk 0:02:41]}  Nbd7 {[%clk 0:02:55]} 8. cxd5 {[%clk 0:02:35]}  exd5 {[%clk 0:02:50]} 9. O-O {[%clk 0:02:34]}  Bd6 {[%clk 0:02:50]} 10. d3 {[%clk 0:02:32]}  Bh7 {[%clk 0:02:50]} 11. Nbd2 {[%clk 0:02:29]}  O-O {[%clk 0:02:50]} 12. Re1 {[%clk 0:02:28]}  a5 {[%clk 0:02:46]} 13. Qc2 {[%clk 0:02:28]}  Re8 {[%clk 0:02:45]} 14. h3 {[%clk 0:02:26]}  Nc5 {[%clk 0:02:26]} 15. Qc3 {[%clk 0:02:09]}  Ne6 {[%clk 0:02:23]} 16. Bf1 {[%clk 0:02:01]}  Ng5 {[%clk 0:02:02]} 17. Nxg5 {[%clk 0:01:57]}  hxg5 {[%clk 0:02:02]} 18. Nf3 {[%clk 0:01:56]}  g4 {[%clk 0:01:06]} 19. hxg4 {[%clk 0:01:56]}  Bf8 {[%clk 0:01:05]} 20. g5 {[%clk 0:01:47]}  Nd7 {[%clk 0:01:05]} 21. Rad1 {[%clk 0:01:18]}  Nc5 {[%clk 0:01:05]} 22. e4 {[%clk 0:01:13]}  Ne6 {[%clk 0:01:02]} 23. Qc1 {[%clk 0:00:34]}  d4 {[%clk 0:00:55]} 24. g3 {[%clk 0:00:30]}  a4 {[%clk 0:00:50]} 25. b4 {[%clk 0:00:29]}  c5 {[%clk 0:00:51]} 26. bxc5 {[%clk 0:00:27]}  Ra5 {[%clk 0:00:50]} 27. Bh3 {[%clk 0:00:22]}  Rxc5 {[%clk 0:00:50]} 28. Qa1 {[%clk 0:00:21]}  Nxg5 {[%clk 0:00:41]} 29. Nxg5 {[%clk 0:00:22]}  Qxg5 {[%clk 0:00:41]} 30. Bxd4 {[%clk 0:00:20]}  Rc2 {[%clk 0:00:42]} 31. Be3 {[%clk 0:00:16]}  Qh5 {[%clk 0:00:41]} 32. Bg2 {[%clk 0:00:16]}  Rd8 {[%clk 0:00:36]} 33. Qb1 {[%clk 0:00:10]}  Rc3 {[%clk 0:00:33]} 34. Qxb7 {[%clk 0:00:09]}  Rxa3 {[%clk 0:00:27]} 35. d4 {[%clk 0:00:09]}  Rb3 {[%clk 0:00:26]} 36. Qc7 {[%clk 0:00:09]}  Rbb8 {[%clk 0:00:23]} 37. d5 {[%clk 0:00:09]}  Rdc8 {[%clk 0:00:23]} 38. Qd7 {[%clk 0:00:09]}  a3 {[%clk 0:00:22]} 39. Ra1 {[%clk 0:00:09]}  Rd8 {[%clk 0:00:10]} 40. Qc7 {[%clk 0:00:06]}  Rbc8 {[%clk 0:00:10]} 41. Qb6 {[%clk 0:00:05]}  Qe5 {[%clk 0:00:09]} 42. Qd4 {[%clk 0:00:05]}  Qb8 {[%clk 0:00:06]} 43. Reb1 {[%clk 0:00:02]}  Qc7 {[%clk 0:00:06]} 44. Rc1 {[%clk 0:00:03]}  Qa5 {[%clk 0:00:05]} 45. Rxc8 {[%clk 0:00:03]}  Rxc8 {[%clk 0:00:06]} 46. e5 {[%clk 0:00:04]}  Bc5 {[%clk 0:00:05]} 47. Qd2 {[%clk 0:00:03]}  Qxd2 {[%clk 0:00:02]} 48. Bxd2 {[%clk 0:00:04]}  Ra8 {[%clk 0:00:01]} 49. Bc3 {[%clk 0:00:04]} 1-0


[Site "https://www.chess.com"]

[Event "Titled Tuesday Blitz January 17 Late 2023"]
[White "Galperin, Platon"]
[Black "Haydon, David L"]
[WhiteFideId "14165414"]
[BlackFideId "415405"]
[WhiteElo "2528"]
[BlackElo "2253"]
[Result "1-0"]
[Round "05"]
[TimeControl "180+2"]
[Date "2023.01.17"]
[WhiteClock "0:00:04"]
[BlackClock "0:00:28"]

1. Nf3 {[%clk 0:02:42]}  c6 {[%clk 0:02:59]} 2. g3 {[%clk 0:02:41]}  d5 {[%clk 0:02:59]} 3. Bg2 {[%clk 0:02:42]}  Nf6 {[%clk 0:03:00]} 4. O-O {[%clk 0:02:42]}  g6 {[%clk 0:02:59]} 5. a4 {[%clk 0:02:38]}  Bg7 {[%clk 0:02:59]} 6. a5 {[%clk 0:02:35]}  O-O {[%clk 0:02:58]} 7. d3 {[%clk 0:02:35]}  Nbd7 {[%clk 0:02:57]} 8. Nc3 {[%clk 0:02:35]}  Re8 {[%clk 0:02:57]} 9. e4 {[%clk 0:02:35]}  e5 {[%clk 0:02:58]} 10. a6 {[%clk 0:02:29]}  bxa6 {[%clk 0:02:55]} 11. d4 {[%clk 0:02:22]}  Nxe4 {[%clk 0:02:52]} 12. Nxe4 {[%clk 0:02:20]}  dxe4 {[%clk 0:02:51]} 13. Nxe5 {[%clk 0:02:18]}  Nxe5 {[%clk 0:02:50]} 14. dxe5 {[%clk 0:02:19]}  Qxd1 {[%clk 0:02:49]} 15. Rxd1 {[%clk 0:02:20]}  Bxe5 {[%clk 0:02:47]} 16. Bxe4 {[%clk 0:02:20]}  Rb8 {[%clk 0:02:23]} 17. Bxc6 {[%clk 0:02:19]}  Rf8 {[%clk 0:02:23]} 18. Bh6 {[%clk 0:02:09]}  Bg7 {[%clk 0:02:18]} 19. Bxg7 {[%clk 0:02:06]}  Kxg7 {[%clk 0:02:17]} 20. Ra2 {[%clk 0:01:52]}  Be6 {[%clk 0:02:14]} 21. b3 {[%clk 0:01:52]}  Rb6 {[%clk 0:02:09]} 22. Be4 {[%clk 0:01:52]}  Re8 {[%clk 0:01:59]} 23. Bd3 {[%clk 0:01:51]}  Rd8 {[%clk 0:01:54]} 24. Rda1 {[%clk 0:01:50]}  Bxb3 {[%clk 0:01:53]} 25. Rxa6 {[%clk 0:01:48]}  Rxa6 {[%clk 0:01:48]} 26. Rxa6 {[%clk 0:01:49]}  Rd7 {[%clk 0:01:44]} 27. Kf1 {[%clk 0:01:29]}  Be6 {[%clk 0:01:37]} 28. Ke2 {[%clk 0:01:27]}  Rc7 {[%clk 0:01:33]} 29. Ra4 {[%clk 0:01:24]}  Kf6 {[%clk 0:01:30]} 30. Ke3 {[%clk 0:01:22]}  Ke5 {[%clk 0:01:30]} 31. c4 {[%clk 0:01:22]}  Kd6 {[%clk 0:01:27]} 32. Kd4 {[%clk 0:01:21]}  Ke7 {[%clk 0:01:27]} 33. Ra6 {[%clk 0:01:18]}  Rd7+ {[%clk 0:01:26]} 34. Kc3 {[%clk 0:01:18]}  Rc7 {[%clk 0:01:26]} 35. Ra5 {[%clk 0:01:16]}  Kd6 {[%clk 0:01:25]} 36. Kd4 {[%clk 0:01:17]}  Kc6 {[%clk 0:01:24]} 37. Be4+ {[%clk 0:01:13]}  Kb6 {[%clk 0:01:22]} 38. Rb5+ {[%clk 0:01:13]}  Ka6 {[%clk 0:01:22]} 39. Bd3 {[%clk 0:01:02]}  Rd7+ {[%clk 0:01:18]} 40. Kc3 {[%clk 0:01:01]}  Rb7 {[%clk 0:01:18]} 41. Re5 {[%clk 0:00:52]}  Kb6 {[%clk 0:01:17]} 42. Be4 {[%clk 0:00:45]}  Rc7 {[%clk 0:01:17]} 43. Rb5+ {[%clk 0:00:40]}  Ka6 {[%clk 0:01:15]} 44. Rb4 {[%clk 0:00:27]}  Ka5 {[%clk 0:01:14]} 45. Bd3 {[%clk 0:00:22]}  h5 {[%clk 0:01:03]} 46. h4 {[%clk 0:00:09]}  a6 {[%clk 0:01:02]} 47. Rb1 {[%clk 0:00:08]}  Rc8 {[%clk 0:00:57]} 48. Ra1+ {[%clk 0:00:07]}  Kb6 {[%clk 0:00:57]} 49. Kb4 {[%clk 0:00:08]}  Rd8 {[%clk 0:00:41]} 50. c5+ {[%clk 0:00:08]}  Kc7 {[%clk 0:00:37]} 51. Bxa6 {[%clk 0:00:08]}  Rd4+ {[%clk 0:00:36]} 52. Kc3 {[%clk 0:00:08]}  Rd5 {[%clk 0:00:36]} 53. Ra5 {[%clk 0:00:07]}  Kc6 {[%clk 0:00:35]} 54. Bb5+ {[%clk 0:00:03]}  Kb7 {[%clk 0:00:35]} 55. Bc4 {[%clk 0:00:03]}  Re5 {[%clk 0:00:35]} 56. Bd3 {[%clk 0:00:02]}  Kc6 {[%clk 0:00:33]} 57. Bb5+ {[%clk 0:00:02]}  Kd5 {[%clk 0:00:30]} 58. Bc4+ {[%clk 0:00:02]}  Kc6 {[%clk 0:00:30]} 59. Kd4 {[%clk 0:00:02]}  Re1 {[%clk 0:00:28]} 60. Ra6+ {[%clk 0:00:03]}  Kb7 {[%clk 0:00:28]} 61. Rb6+ {[%clk 0:00:03]}  Kc7 {[%clk 0:00:27]} 62. Bxe6 {[%clk 0:00:03]}  fxe6 {[%clk 0:00:27]} 63. Rd6 {[%clk 0:00:04]}  e5+ {[%clk 0:00:26]} 64. Kd5 {[%clk 0:00:04]}  e4 {[%clk 0:00:26]} 65. Re6 {[%clk 0:00:03]}  e3 {[%clk 0:00:27]} 66. Rxe3 {[%clk 0:00:03]}  Rd1+ {[%clk 0:00:27]} 67. Ke6 {[%clk 0:00:04]}  Rd2 {[%clk 0:00:28]} 68. Rf3 {[%clk 0:00:04]}  Rxf2 {[%clk 0:00:28]} 69. Rxf2 {[%clk 0:00:04]} 1-0


[Site "https://www.chess.com"]

[Event "Titled Tuesday Blitz January 17 Late 2023"]
[White "Bernadskiy, Vitaliy"]
[Black "Djokic, Mihailo"]
[WhiteFideId "14100371"]
[BlackFideId "976440"]
[WhiteElo "2592"]
[BlackElo "2192"]
[Result "1-0"]
[Round "05"]
[TimeControl "180+2"]
[Date "2023.01.17"]
[WhiteClock "0:01:41"]
[BlackClock "0:00:21"]

1. d4 {[%clk 0:03:00]}  Nf6 {[%clk 0:02:59]} 2. Nf3 {[%clk 0:03:01]}  g6 {[%clk 0:02:57]} 3. c4 {[%clk 0:03:01]}  Bg7 {[%clk 0:02:57]} 4. Nc3 {[%clk 0:03:02]}  O-O {[%clk 0:02:56]} 5. e4 {[%clk 0:03:02]}  d6 {[%clk 0:02:57]} 6. Be2 {[%clk 0:03:02]}  e5 {[%clk 0:02:57]} 7. O-O {[%clk 0:03:03]}  Nc6 {[%clk 0:02:57]} 8. d5 {[%clk 0:03:03]}  Ne7 {[%clk 0:02:58]} 9. b4 {[%clk 0:03:04]}  Nh5 {[%clk 0:02:58]} 10. Re1 {[%clk 0:03:03]}  f5 {[%clk 0:02:58]} 11. a4 {[%clk 0:03:03]}  Nf4 {[%clk 0:02:42]} 12. Bf1 {[%clk 0:03:02]}  fxe4 {[%clk 0:02:42]} 13. Nxe4 {[%clk 0:03:02]}  Bf5 {[%clk 0:02:33]} 14. a5 {[%clk 0:02:58]}  a6 {[%clk 0:02:33]} 15. Ra3 {[%clk 0:02:57]}  Qd7 {[%clk 0:02:31]} 16. Neg5 {[%clk 0:02:47]}  Kh8 {[%clk 0:02:27]} 17. g3 {[%clk 0:02:37]}  Nh5 {[%clk 0:02:24]} 18. Nh4 {[%clk 0:02:35]}  Nf6 {[%clk 0:02:09]} 19. Nxf5 {[%clk 0:02:29]}  gxf5 {[%clk 0:02:02]} 20. Ne6 {[%clk 0:02:25]}  Rg8 {[%clk 0:02:02]} 21. Bh3 {[%clk 0:02:22]}  c6 {[%clk 0:01:53]} 22. Nxg7 {[%clk 0:02:21]}  Kxg7 {[%clk 0:01:49]} 23. f4 {[%clk 0:02:10]}  cxd5 {[%clk 0:01:40]} 24. fxe5 {[%clk 0:02:10]}  dxe5 {[%clk 0:01:41]} 25. Rxe5 {[%clk 0:02:09]}  Rad8 {[%clk 0:01:20]} 26. Rae3 {[%clk 0:02:01]}  Ng6 {[%clk 0:01:08]} 27. Rxf5 {[%clk 0:01:57]}  dxc4 {[%clk 0:01:07]} 28. Qxd7+ {[%clk 0:01:50]}  Rxd7 {[%clk 0:00:37]} 29. Rxf6 {[%clk 0:01:50]}  Kxf6 {[%clk 0:00:23]} 30. Bxd7 {[%clk 0:01:49]}  Rd8 {[%clk 0:00:24]} 31. Bb2+ {[%clk 0:01:49]}  Kg5 {[%clk 0:00:23]} 32. h4+ {[%clk 0:01:47]}  Kh6 {[%clk 0:00:22]} 33. Bh3 {[%clk 0:01:45]}  Rd1+ {[%clk 0:00:22]} 34. Bf1 {[%clk 0:01:44]}  Rb1 {[%clk 0:00:22]} 35. Bc3 {[%clk 0:01:44]}  Kh5 {[%clk 0:00:20]} 36. Kg2 {[%clk 0:01:42]}  Kg4 {[%clk 0:00:21]} 37. Be2+ {[%clk 0:01:42]}  Kf5 {[%clk 0:00:21]} 38. Bxc4 {[%clk 0:01:41]} 1-0


[Site "https://www.chess.com"]

[Event "Titled Tuesday Blitz January 17 Late 2023"]
[White "Urazayev, Arystanbek"]
[Black "Liang, Justin"]
[WhiteFideId "13709810"]
[BlackFideId "2099942"]
[WhiteElo "2460"]
[BlackElo "2052"]
[Result "1-0"]
[Round "05"]
[TimeControl "180+2"]
[Date "2023.01.17"]
[WhiteClock "0:01:09"]
[BlackClock "0:00:04"]

1. e4 {[%clk 0:02:55]}  c5 {[%clk 0:02:59]} 2. Nf3 {[%clk 0:02:56]}  e6 {[%clk 0:02:58]} 3. d4 {[%clk 0:02:56]}  cxd4 {[%clk 0:02:58]} 4. Nxd4 {[%clk 0:02:57]}  Nc6 {[%clk 0:02:59]} 5. Nc3 {[%clk 0:02:57]}  Qc7 {[%clk 0:02:59]} 6. Be3 {[%clk 0:02:58]}  a6 {[%clk 0:02:59]} 7. g4 {[%clk 0:02:58]}  b5 {[%clk 0:02:59]} 8. Nxc6 {[%clk 0:02:59]}  Qxc6 {[%clk 0:02:38]} 9. Qd2 {[%clk 0:02:58]}  Bb7 {[%clk 0:02:35]} 10. O-O-O {[%clk 0:02:56]}  b4 {[%clk 0:02:01]} 11. Ne2 {[%clk 0:02:54]}  Nf6 {[%clk 0:01:59]} 12. Bg2 {[%clk 0:02:48]}  Nxg4 {[%clk 0:01:36]} 13. Bb6 {[%clk 0:02:41]}  Ne5 {[%clk 0:01:17]} 14. Bd4 {[%clk 0:02:39]}  Nc4 {[%clk 0:01:15]} 15. Qd3 {[%clk 0:02:40]}  O-O-O {[%clk 0:01:08]} 16. f4 {[%clk 0:02:39]}  d6 {[%clk 0:00:51]} 17. Rhg1 {[%clk 0:02:39]}  e5 {[%clk 0:00:42]} 18. Ba7 {[%clk 0:02:39]}  Be7 {[%clk 0:00:38]} 19. Bh3+ {[%clk 0:02:38]}  Kc7 {[%clk 0:00:38]} 20. Rxg7 {[%clk 0:02:39]}  Rhf8 {[%clk 0:00:32]} 21. Rxh7 {[%clk 0:02:28]}  exf4 {[%clk 0:00:26]} 22. Kb1 {[%clk 0:02:26]}  Qxe4 {[%clk 0:00:18]} 23. Rc1 {[%clk 0:02:05]}  Bf6 {[%clk 0:00:08]} 24. Bf5 {[%clk 0:02:00]}  Qd5 {[%clk 0:00:02]} 25. Nxf4 {[%clk 0:01:56]}  Qb5 {[%clk 0:00:03]} 26. Ne6+ {[%clk 0:01:56]}  Kc6 {[%clk 0:00:02]} 27. Nxd8+ {[%clk 0:01:53]}  Rxd8 {[%clk 0:00:02]} 28. Rxf7 {[%clk 0:01:51]}  Bxb2 {[%clk 0:00:03]} 29. Qe4+ {[%clk 0:01:25]}  Qd5 {[%clk 0:00:03]} 30. Rd1 {[%clk 0:01:11]}  Qxe4 {[%clk 0:00:03]} 31. Bxe4+ {[%clk 0:01:12]}  d5 {[%clk 0:00:04]} 32. Rxd5 {[%clk 0:01:11]}  Rxd5 {[%clk 0:00:04]} 33. Bxd5+ {[%clk 0:01:11]}  Kxd5 {[%clk 0:00:05]} 34. Rxb7 {[%clk 0:01:12]}  Bc3 {[%clk 0:00:06]} 35. Kc1 {[%clk 0:01:09]}  Ne3 {[%clk 0:00:04]} 1-0


[Site "https://www.chess.com"]

[Event "Titled Tuesday Blitz January 17 Late 2023"]
[White "Boruchovsky, Avital"]
[Black "Prado Lobo, Jonas"]
[WhiteFideId "2800055"]
[BlackFideId "32050666"]
[WhiteElo "2539"]
[BlackElo "2313"]
[Result "1-0"]
[Round "05"]
[TimeControl "180+2"]
[Date "2023.01.17"]
[WhiteClock "0:00:56"]
[BlackClock "0:00:11"]

1. d4 {[%clk 0:03:00]}  Nf6 {[%clk 0:02:59]} 2. c4 {[%clk 0:03:00]}  e6 {[%clk 0:03:00]} 3. Nc3 {[%clk 0:03:00]}  Bb4 {[%clk 0:02:58]} 4. e3 {[%clk 0:02:55]}  O-O {[%clk 0:02:55]} 5. Bd3 {[%clk 0:02:55]}  d5 {[%clk 0:02:56]} 6. Nf3 {[%clk 0:02:55]}  c5 {[%clk 0:02:55]} 7. cxd5 {[%clk 0:02:56]}  exd5 {[%clk 0:02:53]} 8. O-O {[%clk 0:02:54]}  c4 {[%clk 0:02:49]} 9. Bc2 {[%clk 0:02:54]}  Re8 {[%clk 0:02:48]} 10. Ne5 {[%clk 0:02:54]}  Nc6 {[%clk 0:02:40]} 11. f4 {[%clk 0:02:54]}  Bxc3 {[%clk 0:02:27]} 12. bxc3 {[%clk 0:02:52]}  Ne4 {[%clk 0:02:28]} 13. Bxe4 {[%clk 0:02:44]}  dxe4 {[%clk 0:02:18]} 14. Nxc4 {[%clk 0:02:44]}  Be6 {[%clk 0:02:08]} 15. Nd2 {[%clk 0:02:43]}  f5 {[%clk 0:02:04]} 16. c4 {[%clk 0:02:42]}  Nb4 {[%clk 0:02:02]} 17. d5 {[%clk 0:02:42]}  Bf7 {[%clk 0:02:01]} 18. Bb2 {[%clk 0:02:42]}  Nd3 {[%clk 0:01:54]} 19. Bd4 {[%clk 0:02:42]}  b6 {[%clk 0:01:43]} 20. Rb1 {[%clk 0:01:44]}  Rc8 {[%clk 0:01:43]} 21. Rb3 {[%clk 0:01:44]}  Qh4 {[%clk 0:01:34]} 22. Ra3 {[%clk 0:01:36]}  Bh5 {[%clk 0:01:30]} 23. Qb3 {[%clk 0:01:34]}  Be2 {[%clk 0:01:29]} 24. Rxa7 {[%clk 0:01:14]}  Bxf1 {[%clk 0:01:26]} 25. Rxg7+ {[%clk 0:01:13]}  Kf8 {[%clk 0:01:25]} 26. g3 {[%clk 0:01:10]}  Qh5 {[%clk 0:01:03]} 27. Qxb6 {[%clk 0:01:02]}  Re5 {[%clk 0:00:11]} 28. Qf6+ {[%clk 0:00:57]}  Ke8 {[%clk 0:00:11]} 29. Bxe5 {[%clk 0:00:56]} 1-0


[Site "https://www.chess.com"]